[Event "Late-Titled-Tuesday-Blitz-November-28-2023"]
[Site "Chess.com"]
[Date "2023.11.28"]
[Round "6"]
[White "MKlose11"]
[Black "tolimachess"]
[Result "1-0"]
[WhiteElo "2596"]
[BlackElo "2378"]
[TimeControl "180+1"]
[EndTime "15:06:50 PST"]
[Termination "MKlose11 won by checkmate"]

1. e4 {[%clk 0:02:57.9]} 1... c5 {[%clk 0:02:59.7]} 2. Nc3 {[%clk 0:02:57.8]}
2... Nc6 {[%clk 0:02:58.7]} 3. g3 {[%clk 0:02:58.7]} 3... g6 {[%clk 0:02:56.8]}
4. Bg2 {[%clk 0:02:59.1]} 4... Bg7 {[%clk 0:02:57.3]} 5. d3 {[%clk 0:03:00]}
5... e5 {[%clk 0:02:57.5]} 6. Be3 {[%clk 0:03:00.5]} 6... Nge7 {[%clk
0:02:58.1]} 7. Qd2 {[%clk 0:03:01]} 7... d6 {[%clk 0:02:58.5]} 8. Bh6 {[%clk
0:03:00.8]} 8... O-O {[%clk 0:02:58.7]} 9. h4 {[%clk 0:03:00.4]} 9... f5 {[%clk
0:02:58.9]} 10. Bxg7 {[%clk 0:02:56.1]} 10... Kxg7 {[%clk 0:02:58.9]} 11. h5
{[%clk 0:02:57]} 11... f4 {[%clk 0:02:59.4]} 12. hxg6 {[%clk 0:02:56.4]} 12...
hxg6 {[%clk 0:02:56.1]} 13. Nge2 {[%clk 0:02:56]} 13... g5 {[%clk 0:02:45.7]}
14. gxf4 {[%clk 0:02:56.2]} 14... exf4 {[%clk 0:02:44.4]} 15. O-O-O {[%clk
0:02:50.9]} 15... Ng6 {[%clk 0:02:39.9]} 16. Bf3 {[%clk 0:02:27.5]} 16... Be6
{[%clk 0:02:32.3]} 17. Rdg1 {[%clk 0:02:27]} 17... Qf6 {[%clk 0:02:30.1]} 18.
Bh5 {[%clk 0:02:19.1]} 18... Nce5 {[%clk 0:02:27.3]} 19. Bxg6 {[%clk 0:02:15.3]}
19... Nxg6 {[%clk 0:02:28.2]} 20. Rh2 {[%clk 0:02:05.5]} 20... Rh8 {[%clk
0:02:24.6]} 21. Rhg2 {[%clk 0:02:05.6]} 21... Rh5 {[%clk 0:02:24.9]} 22. f3
{[%clk 0:01:56]} 22... Kf7 {[%clk 0:02:22.1]} 23. d4 {[%clk 0:01:55.8]} 23...
Nh4 {[%clk 0:02:09.3]} 24. Rf2 {[%clk 0:01:51]} 24... Ng6 {[%clk 0:02:00.1]} 25.
Nb5 {[%clk 0:01:46.4]} 25... Qe7 {[%clk 0:01:52.8]} 26. b3 {[%clk 0:01:18]}
26... a6 {[%clk 0:01:50.8]} 27. Nbc3 {[%clk 0:01:17.6]} 27... Rd8 {[%clk
0:01:50.1]} 28. Rd1 {[%clk 0:01:12.8]} 28... Rhh8 {[%clk 0:01:47.2]} 29. Rg2
{[%clk 0:01:09.5]} 29... Nh4 {[%clk 0:01:46.5]} 30. Rf2 {[%clk 0:01:09.5]} 30...
b5 {[%clk 0:01:45.3]} 31. Kb1 {[%clk 0:01:08.4]} 31... b4 {[%clk 0:01:40.3]} 32.
Na4 {[%clk 0:01:07.4]} 32... Bd7 {[%clk 0:01:40.8]} 33. Nb6 {[%clk 0:01:05.6]}
33... Bc6 {[%clk 0:01:41.1]} 34. Nc4 {[%clk 0:01:04.6]} 34... Bb5 {[%clk
0:01:38.1]} 35. Nb6 {[%clk 0:01:01.5]} 35... Bc6 {[%clk 0:01:36.3]} 36. Rg1
{[%clk 0:00:56]} 36... Qf6 {[%clk 0:01:26.9]} 37. Nc4 {[%clk 0:00:26.6]} 37...
Bb5 {[%clk 0:01:22.3]} 38. Nb6 {[%clk 0:00:26.1]} 38... Bc6 {[%clk 0:01:20.2]}
39. Rd1 {[%clk 0:00:24.8]} 39... Ng6 {[%clk 0:01:12.7]} 40. Nc1 {[%clk
0:00:23.9]} 40... cxd4 {[%clk 0:01:06]} 41. Qxd4 {[%clk 0:00:18.1]} 41... Qxd4
{[%clk 0:01:05.8]} 42. Rxd4 {[%clk 0:00:19]} 42... a5 {[%clk 0:01:06.5]} 43. Nc4
{[%clk 0:00:18.3]} 43... Ke6 {[%clk 0:01:05.6]} 44. Nxa5 {[%clk 0:00:18.3]}
44... Ba8 {[%clk 0:01:05.1]} 45. Rxb4 {[%clk 0:00:18.5]} 45... Rh1 {[%clk
0:01:04.4]} 46. Kb2 {[%clk 0:00:18.4]} 46... Ne5 {[%clk 0:01:04.6]} 47. Nd3
{[%clk 0:00:17.8]} 47... Ng6 {[%clk 0:01:00.3]} 48. Rb6 {[%clk 0:00:15]} 48...
Nh4 {[%clk 0:01:00.1]} 49. Nc4 {[%clk 0:00:14.9]} 49... Rh3 {[%clk 0:00:58]} 50.
Nd2 {[%clk 0:00:14]} 50... Rc8 {[%clk 0:00:50.8]} 51. Rb5 {[%clk 0:00:14.2]}
51... d5 {[%clk 0:00:49.9]} 52. exd5+ {[%clk 0:00:13.6]} 52... Bxd5 {[%clk
0:00:50.8]} 53. Nc5+ {[%clk 0:00:10.9]} 53... Kd6 {[%clk 0:00:48]} 54. Nce4+
{[%clk 0:00:11.1]} 54... Bxe4 {[%clk 0:00:44.7]} 55. Nxe4+ {[%clk 0:00:12]}
55... Ke7 {[%clk 0:00:44.9]} 56. Nxg5 {[%clk 0:00:12]} 56... Rg3 {[%clk
0:00:45.2]} 57. Ne4 {[%clk 0:00:11.6]} 57... Rxf3 {[%clk 0:00:45.1]} 58. Re5+
{[%clk 0:00:07.6]} 58... Kd7 {[%clk 0:00:41.8]} 59. Nf6+ {[%clk 0:00:07]} 59...
Kd6 {[%clk 0:00:41.1]} 60. Rxf3 {[%clk 0:00:06.5]} 60... Nxf3 {[%clk 0:00:41.8]}
61. Rf5 {[%clk 0:00:07.2]} 61... Nd4 {[%clk 0:00:37.8]} 62. Rxf4 {[%clk
0:00:07.6]} 62... Nxc2 {[%clk 0:00:33.2]} 63. Rf2 {[%clk 0:00:06.2]} 63... Nb4
{[%clk 0:00:32.9]} 64. Ne4+ {[%clk 0:00:06.5]} 64... Ke5 {[%clk 0:00:33.3]} 65.
Re2 {[%clk 0:00:06.4]} 65... Kd4 {[%clk 0:00:32]} 66. Nf2 {[%clk 0:00:03.1]}
66... Nd5 {[%clk 0:00:29.6]} 67. a3 {[%clk 0:00:03.6]} 67... Rb8 {[%clk
0:00:10.7]} 68. Rc2 {[%clk 0:00:03.8]} 68... Ne3 {[%clk 0:00:10.8]} 69. Rd2+
{[%clk 0:00:03.5]} 69... Ke5 {[%clk 0:00:11]} 70. Nd1 {[%clk 0:00:04.4]} 70...
Nd5 {[%clk 0:00:11]} 71. Nc3 {[%clk 0:00:03.8]} 71... Nf4 {[%clk 0:00:11]} 72.
Kc2 {[%clk 0:00:03.4]} 72... Rc8 {[%clk 0:00:10.8]} 73. b4 {[%clk 0:00:02.9]}
73... Ne6 {[%clk 0:00:11.4]} 74. Kb3 {[%clk 0:00:03.3]} 74... Nd4+ {[%clk
0:00:12]} 75. Kb2 {[%clk 0:00:03.7]} 75... Nc6 {[%clk 0:00:11.9]} 76. Re2+
{[%clk 0:00:04.1]} 76... Kd4 {[%clk 0:00:11.7]} 77. Rc2 {[%clk 0:00:04.4]} 77...
Ne5 {[%clk 0:00:11.5]} 78. Nb5+ {[%clk 0:00:04.5]} 78... Kd3 {[%clk 0:00:12]}
79. Rxc8 {[%clk 0:00:05.4]} 79... Nc4+ {[%clk 0:00:12.6]} 80. Rxc4 {[%clk
0:00:04.8]} 80... Kxc4 {[%clk 0:00:13.5]} 81. Nc3 {[%clk 0:00:05.4]} 81... Kd4
{[%clk 0:00:13.6]} 82. Kb3 {[%clk 0:00:06.3]} 82... Ke5 {[%clk 0:00:13.8]} 83.
a4 {[%clk 0:00:07.2]} 83... Kd6 {[%clk 0:00:14.7]} 84. b5 {[%clk 0:00:07.6]}
84... Kc7 {[%clk 0:00:15.1]} 85. Kb4 {[%clk 0:00:07.7]} 85... Kb6 {[%clk
0:00:16]} 86. a5+ {[%clk 0:00:08]} 86... Ka7 {[%clk 0:00:16.9]} 87. b6+ {[%clk
0:00:08]} 87... Kb7 {[%clk 0:00:17.8]} 88. Kb5 {[%clk 0:00:08.2]} 88... Kc8
{[%clk 0:00:18.6]} 89. a6 {[%clk 0:00:08.6]} 89... Kd7 {[%clk 0:00:19.5]} 90. a7
{[%clk 0:00:08.7]} 90... Kd6 {[%clk 0:00:20.4]} 91. a8=Q {[%clk 0:00:08.8]}
91... Ke5 {[%clk 0:00:21.3]} 92. b7 {[%clk 0:00:09.1]} 92... Kf4 {[%clk
0:00:22.2]} 93. b8=Q+ {[%clk 0:00:09.2]} 93... Ke3 {[%clk 0:00:23.1]} 94. Qe4+
{[%clk 0:00:08.7]} 94... Kd2 {[%clk 0:00:24]} 95. Qbf4+ {[%clk 0:00:08.3]} 95...
Kxc3 {[%clk 0:00:23.8]} 96. Qc1+ {[%clk 0:00:08.1]} 96... Kb3 {[%clk 0:00:24]}
97. Qec4# {[%clk 0:00:08.4]} 1-0

[Event "Late-Titled-Tuesday-Blitz-November-28-2023"]
[Site "Chess.com"]
[Date "2023.11.28"]
[Round "6"]
[White "C_K_G"]
[Black "Nick12772"]
[Result "0-1"]
[WhiteElo "2185"]
[BlackElo "2385"]
[TimeControl "180+1"]
[EndTime "15:07:32 PST"]
[Termination "Nick12772 won by checkmate"]

1. e4 {[%clk 0:02:57.1]} 1... e6 {[%clk 0:02:59.6]} 2. Nf3 {[%clk 0:02:54.1]}
2... d5 {[%clk 0:03:00.5]} 3. Nc3 {[%clk 0:02:54.3]} 3... d4 {[%clk 0:02:57.9]}
4. Ne2 {[%clk 0:02:54]} 4... c5 {[%clk 0:02:58.2]} 5. c3 {[%clk 0:02:54]} 5...
dxc3 {[%clk 0:02:59.1]} 6. bxc3 {[%clk 0:02:54]} 6... Nc6 {[%clk 0:02:58.9]} 7.
d4 {[%clk 0:02:51.2]} 7... cxd4 {[%clk 0:02:58.7]} 8. cxd4 {[%clk 0:02:51.6]}
8... Bb4+ {[%clk 0:02:58.1]} 9. Bd2 {[%clk 0:02:51.9]} 9... Bxd2+ {[%clk
0:02:58.1]} 10. Qxd2 {[%clk 0:02:52.2]} 10... Nf6 {[%clk 0:02:57.5]} 11. Ng3
{[%clk 0:02:47.9]} 11... O-O {[%clk 0:02:54.3]} 12. e5 {[%clk 0:02:26.6]} 12...
Nd5 {[%clk 0:02:53]} 13. Bd3 {[%clk 0:02:26.5]} 13... Qa5 {[%clk 0:02:52.5]} 14.
Qxa5 {[%clk 0:02:09.4]} 14... Nxa5 {[%clk 0:02:53.4]} 15. O-O {[%clk 0:02:03.9]}
15... Bd7 {[%clk 0:02:52]} 16. Ne4 {[%clk 0:01:58.8]} 16... Nb4 {[%clk
0:02:36.1]} 17. Bb1 {[%clk 0:01:48]} 17... Bc6 {[%clk 0:02:19.9]} 18. Nfd2
{[%clk 0:01:47.6]} 18... Rfd8 {[%clk 0:01:52.4]} 19. Nd6 {[%clk 0:01:47.2]}
19... Nd5 {[%clk 0:01:45.7]} 20. Be4 {[%clk 0:01:38.5]} 20... Nc3 {[%clk
0:01:38]} 21. Bxc6 {[%clk 0:01:29]} 21... Nxc6 {[%clk 0:01:32.3]} 22. Nf3 {[%clk
0:01:12.5]} 22... b6 {[%clk 0:01:28.9]} 23. Rfe1 {[%clk 0:01:06.2]} 23... Nb4
{[%clk 0:01:27.9]} 24. Rac1 {[%clk 0:00:28.2]} 24... Nbxa2 {[%clk 0:01:17]} 25.
Rc2 {[%clk 0:00:27.8]} 25... b5 {[%clk 0:01:14]} 26. Nxb5 {[%clk 0:00:23.7]}
26... Nxb5 {[%clk 0:01:14.9]} 27. Rxa2 {[%clk 0:00:23.7]} 27... Nxd4 {[%clk
0:01:15.4]} 28. Nxd4 {[%clk 0:00:20.1]} 28... Rxd4 {[%clk 0:01:16.3]} 29. g3
{[%clk 0:00:20]} 29... a5 {[%clk 0:01:09]} 30. Rb1 {[%clk 0:00:17.4]} 30... g5
{[%clk 0:01:07.8]} 31. Rb5 {[%clk 0:00:17.1]} 31... a4 {[%clk 0:01:07.3]} 32. h3
{[%clk 0:00:17.1]} 32... Kg7 {[%clk 0:01:06.5]} 33. Kg2 {[%clk 0:00:17.5]} 33...
Rd3 {[%clk 0:01:06.8]} 34. Rb7 {[%clk 0:00:14.8]} 34... a3 {[%clk 0:01:05.8]}
35. Rb5 {[%clk 0:00:13.6]} 35... h5 {[%clk 0:01:04.5]} 36. Kf1 {[%clk
0:00:13.4]} 36... h4 {[%clk 0:01:04.1]} 37. gxh4 {[%clk 0:00:12.9]} 37... gxh4
{[%clk 0:01:05]} 38. Kg2 {[%clk 0:00:12.4]} 38... Kg6 {[%clk 0:01:05.5]} 39. Rb4
{[%clk 0:00:12.1]} 39... Kf5 {[%clk 0:00:56.7]} 40. Rxh4 {[%clk 0:00:11.7]}
40... Kxe5 {[%clk 0:00:57.1]} 41. Rb4 {[%clk 0:00:10.9]} 41... Rg8+ {[%clk
0:00:49.1]} 42. Kh2 {[%clk 0:00:11]} 42... Rh8 {[%clk 0:00:48.8]} 43. h4 {[%clk
0:00:08.7]} 43... Rc8 {[%clk 0:00:43.7]} 44. Kg2 {[%clk 0:00:08]} 44... Rcc3
{[%clk 0:00:43.4]} 45. Ra4 {[%clk 0:00:07.2]} 45... Kf5 {[%clk 0:00:42.1]} 46.
Kh2 {[%clk 0:00:06.6]} 46... Kg6 {[%clk 0:00:38.2]} 47. Kg2 {[%clk 0:00:06.8]}
47... Kh5 {[%clk 0:00:38.3]} 48. Kh2 {[%clk 0:00:07]} 48... Rh3+ {[%clk
0:00:38.3]} 49. Kg2 {[%clk 0:00:07.4]} 49... Rxh4 {[%clk 0:00:37]} 50. R2xa3
{[%clk 0:00:06.1]} 50... Rxa3 {[%clk 0:00:33.8]} 51. Rxa3 {[%clk 0:00:06]} 51...
Rf4 {[%clk 0:00:33.9]} 52. Kg3 {[%clk 0:00:05.8]} 52... Rf6 {[%clk 0:00:32.3]}
53. Ra8 {[%clk 0:00:04.8]} 53... Kg6 {[%clk 0:00:32.2]} 54. Ra7 {[%clk
0:00:04.4]} 54... e5 {[%clk 0:00:30.8]} 55. Ra4 {[%clk 0:00:04.9]} 55... Rf5
{[%clk 0:00:27.1]} 56. Ra6+ {[%clk 0:00:04.5]} 56... f6 {[%clk 0:00:27.2]} 57.
Ra8 {[%clk 0:00:05.2]} 57... Kf7 {[%clk 0:00:27.1]} 58. Ra7+ {[%clk 0:00:04.5]}
58... Ke6 {[%clk 0:00:27.6]} 59. Ra6+ {[%clk 0:00:05.3]} 59... Ke7 {[%clk
0:00:28.2]} 60. Ra5 {[%clk 0:00:06]} 60... Rf4 {[%clk 0:00:27.9]} 61. Ra6 {[%clk
0:00:05.9]} 61... Kd7 {[%clk 0:00:27.9]} 62. Ra7+ {[%clk 0:00:06.3]} 62... Kd6
{[%clk 0:00:28.4]} 63. Ra6+ {[%clk 0:00:07]} 63... Kd5 {[%clk 0:00:28.9]} 64.
Ra5+ {[%clk 0:00:07.8]} 64... Ke6 {[%clk 0:00:27.2]} 65. Ra6+ {[%clk 0:00:08.5]}
65... Kf7 {[%clk 0:00:27.9]} 66. Ra8 {[%clk 0:00:09]} 66... Rb4 {[%clk
0:00:26.7]} 67. Ra7+ {[%clk 0:00:08.9]} 67... Kg6 {[%clk 0:00:27]} 68. Ra6
{[%clk 0:00:08.4]} 68... Kf5 {[%clk 0:00:26.4]} 69. Rc6 {[%clk 0:00:08.7]} 69...
Rb3+ {[%clk 0:00:26.8]} 70. Kg2 {[%clk 0:00:08.6]} 70... e4 {[%clk 0:00:24.8]}
71. Ra6 {[%clk 0:00:08.8]} 71... Rb2 {[%clk 0:00:24.4]} 72. Kg3 {[%clk 0:00:08]}
72... Rb3+ {[%clk 0:00:22.3]} 73. Kg2 {[%clk 0:00:08.3]} 73... Rf3 {[%clk
0:00:21.3]} 74. Ra5+ {[%clk 0:00:08.1]} 74... Kf4 {[%clk 0:00:20.7]} 75. Ra7
{[%clk 0:00:08.3]} 75... f5 {[%clk 0:00:20.5]} 76. Ra5 {[%clk 0:00:08.4]} 76...
Rb3 {[%clk 0:00:20.1]} 77. Ra8 {[%clk 0:00:08.4]} 77... Rb2 {[%clk 0:00:20.5]}
78. Kg1 {[%clk 0:00:07.3]} 78... Kf3 {[%clk 0:00:19.3]} 79. Ra1 {[%clk
0:00:07.4]} 79... f4 {[%clk 0:00:17.9]} 80. Rf1 {[%clk 0:00:06.7]} 80... Kg4
{[%clk 0:00:15.3]} 81. Kg2 {[%clk 0:00:06.4]} 81... e3 {[%clk 0:00:15]} 82. Kg1
{[%clk 0:00:06.7]} 82... e2 {[%clk 0:00:14]} 83. Re1 {[%clk 0:00:06.8]} 83... f3
{[%clk 0:00:14.4]} 84. Kh1 {[%clk 0:00:06.7]} 84... Rd2 {[%clk 0:00:14.6]} 85.
Kh2 {[%clk 0:00:06]} 85... Rd1 {[%clk 0:00:13.3]} 86. Rxd1 {[%clk 0:00:04.1]}
86... exd1=N {[%clk 0:00:09.6]} 87. Kg1 {[%clk 0:00:03]} 87... Kf4 {[%clk
0:00:07.6]} 88. Kf1 {[%clk 0:00:02.5]} 88... Nc3 {[%clk 0:00:07.9]} 89. Ke1
{[%clk 0:00:02]} 89... Ne4 {[%clk 0:00:08.6]} 90. Kf1 {[%clk 0:00:01.4]} 90...
Ke5 {[%clk 0:00:08.3]} 91. Kg1 {[%clk 0:00:01.8]} 91... Kd4 {[%clk 0:00:09]} 92.
Kf1 {[%clk 0:00:02.2]} 92... Kd3 {[%clk 0:00:09.5]} 93. Ke1 {[%clk 0:00:02.5]}
93... Kc2 {[%clk 0:00:08.9]} 94. Kf1 {[%clk 0:00:02.8]} 94... Kd2 {[%clk
0:00:09.5]} 95. Kg1 {[%clk 0:00:02.9]} 95... Ke2 {[%clk 0:00:10.2]} 96. Kh2
{[%clk 0:00:02.8]} 96... Kxf2 {[%clk 0:00:10]} 97. Kh1 {[%clk 0:00:03.3]} 97...
Ke1 {[%clk 0:00:07.1]} 98. Kh2 {[%clk 0:00:02.4]} 98... f2 {[%clk 0:00:07.7]}
99. Kg2 {[%clk 0:00:01.3]} 99... f1=Q+ {[%clk 0:00:07.5]} 100. Kh2 {[%clk
0:00:02]} 100... Qf2+ {[%clk 0:00:05.4]} 101. Kh3 {[%clk 0:00:02.1]} 101... Qg3#
{[%clk 0:00:05.4]} 0-1

[Event "Late-Titled-Tuesday-Blitz-November-28-2023"]
[Site "Chess.com"]
[Date "2023.11.28"]
[Round "7"]
[White "miraitrunks"]
[Black "kxt100"]
[Result "0-1"]
[WhiteElo "2035"]
[BlackElo "2257"]
[TimeControl "180+1"]
[EndTime "15:09:50 PST"]
[Termination "kxt100 won by resignation"]

1. e4 {[%clk 0:02:59.9]} 1... c5 {[%clk 0:02:55.9]} 2. c3 {[%clk 0:02:59.3]}
2... b6 {[%clk 0:02:54.6]} 3. d4 {[%clk 0:02:59.7]} 3... Bb7 {[%clk 0:02:53.4]}
4. Bd3 {[%clk 0:02:59.7]} 4... Nf6 {[%clk 0:02:50.3]} 5. Qe2 {[%clk 0:02:59.3]}
5... cxd4 {[%clk 0:02:42]} 6. cxd4 {[%clk 0:02:58.9]} 6... Nc6 {[%clk
0:02:42.5]} 7. Nf3 {[%clk 0:02:52.7]} 7... Nb4 {[%clk 0:02:41.5]} 8. e5 {[%clk
0:02:52.3]} 8... Rc8 {[%clk 0:02:32.1]} 9. Nc3 {[%clk 0:02:46.7]} 9... Nfd5
{[%clk 0:02:07.8]} 10. Nxd5 {[%clk 0:02:42.4]} 10... Bxd5 {[%clk 0:02:08.3]} 11.
O-O {[%clk 0:02:41.7]} 11... Nxd3 {[%clk 0:02:07.4]} 12. Qxd3 {[%clk 0:02:40.7]}
12... Bc4 {[%clk 0:02:08.1]} 13. Qe4 {[%clk 0:02:36.7]} 13... Bxf1 {[%clk
0:02:09]} 14. Kxf1 {[%clk 0:02:37.4]} 14... e6 {[%clk 0:02:06.5]} 0-1

[Event "Late-Titled-Tuesday-Blitz-November-28-2023"]
[Site "Chess.com"]
[Date "2023.11.28"]
[Round "7"]
[White "DraningWaterHi"]
[Black "emeli_chess"]
[Result "0-1"]
[WhiteElo "2170"]
[BlackElo "2371"]
[TimeControl "180+1"]
[EndTime "15:10:38 PST"]
[Termination "emeli_chess won by resignation"]

1. d4 {[%clk 0:03:00.9]} 1... Nf6 {[%clk 0:02:58.9]} 2. c4 {[%clk 0:03:00.6]}
2... e6 {[%clk 0:02:58.9]} 3. Nf3 {[%clk 0:02:58.7]} 3... b6 {[%clk 0:02:55.1]}
4. g3 {[%clk 0:02:57.6]} 4... Bb7 {[%clk 0:02:53.5]} 5. Bg2 {[%clk 0:02:58.1]}
5... c5 {[%clk 0:02:52.9]} 6. O-O {[%clk 0:02:57.9]} 6... cxd4 {[%clk
0:02:51.8]} 7. Nxd4 {[%clk 0:02:56.4]} 7... Bxg2 {[%clk 0:02:51]} 8. Kxg2 {[%clk
0:02:57.3]} 8... Be7 {[%clk 0:02:48.3]} 9. Nc3 {[%clk 0:02:57.4]} 9... O-O
{[%clk 0:02:47.6]} 10. e4 {[%clk 0:02:56.8]} 10... d6 {[%clk 0:02:47.3]} 11. Be3
{[%clk 0:02:56.6]} 11... a6 {[%clk 0:02:46.8]} 12. f4 {[%clk 0:02:55.5]} 12...
Qc7 {[%clk 0:02:45.6]} 13. Qe2 {[%clk 0:02:52.4]} 13... Nbd7 {[%clk 0:02:43.7]}
14. Rad1 {[%clk 0:02:48.2]} 14... Rac8 {[%clk 0:02:42.5]} 15. Nb3 {[%clk
0:02:17.7]} 15... Qxc4 {[%clk 0:02:37.8]} 16. Qxc4 {[%clk 0:02:17.5]} 16... Rxc4
{[%clk 0:02:37.5]} 17. e5 {[%clk 0:02:18.4]} 17... dxe5 {[%clk 0:02:27.9]} 18.
fxe5 {[%clk 0:02:08.8]} 18... Ng4 {[%clk 0:02:22.4]} 19. Rxd7 {[%clk 0:01:52.3]}
19... Nxe3+ {[%clk 0:02:21.5]} 20. Kf2 {[%clk 0:01:47]} 20... Nxf1 {[%clk
0:02:21.1]} 21. Rxe7 {[%clk 0:01:46.5]} 21... Nxh2 {[%clk 0:02:19.3]} 0-1

[Event "Late-Titled-Tuesday-Blitz-November-28-2023"]
[Site "Chess.com"]
[Date "2023.11.28"]
[Round "7"]
[White "gmpeter008"]
[Black "Meri-Arabidze"]
[Result "0-1"]
[WhiteElo "2502"]
[BlackElo "2677"]
[TimeControl "180+1"]
[EndTime "15:10:51 PST"]
[Termination "Meri-Arabidze won by resignation"]

1. d4 {[%clk 0:03:00.9]} 1... Nf6 {[%clk 0:02:55.9]} 2. c4 {[%clk 0:03:00.6]}
2... g6 {[%clk 0:02:56.3]} 3. g3 {[%clk 0:03:00.3]} 3... Bg7 {[%clk 0:02:56.4]}
4. Bg2 {[%clk 0:03:01]} 4... O-O {[%clk 0:02:54.3]} 5. Nf3 {[%clk 0:03:01.4]}
5... c6 {[%clk 0:02:54.7]} 6. O-O {[%clk 0:03:01.8]} 6... d5 {[%clk 0:02:55]} 7.
b3 {[%clk 0:03:02.2]} 7... Bf5 {[%clk 0:02:51.4]} 8. Bb2 {[%clk 0:03:01.8]} 8...
a5 {[%clk 0:02:50.5]} 9. Nc3 {[%clk 0:02:59.6]} 9... Ne4 {[%clk 0:02:50.1]} 10.
Nh4 {[%clk 0:02:56.5]} 10... Nxc3 {[%clk 0:02:45.5]} 11. Bxc3 {[%clk 0:02:57.4]}
11... Be6 {[%clk 0:02:46.1]} 12. cxd5 {[%clk 0:02:46.9]} 12... cxd5 {[%clk
0:02:47]} 13. e4 {[%clk 0:02:27.3]} 13... dxe4 {[%clk 0:02:40.4]} 14. Bxe4
{[%clk 0:02:28.2]} 14... Nc6 {[%clk 0:02:39.8]} 15. Nf3 {[%clk 0:02:26.8]} 15...
Bd5 {[%clk 0:02:38.8]} 16. Qe2 {[%clk 0:02:26.3]} 16... e6 {[%clk 0:02:38]} 17.
Rfd1 {[%clk 0:02:16.1]} 17... Rc8 {[%clk 0:02:36]} 18. Rac1 {[%clk 0:02:14.2]}
18... Re8 {[%clk 0:02:35.8]} 19. h4 {[%clk 0:02:11.4]} 19... h6 {[%clk
0:02:31.5]} 20. Ne5 {[%clk 0:01:57.9]} 20... Bxe4 {[%clk 0:02:04.7]} 21. Qxe4
{[%clk 0:01:56.1]} 21... Nxe5 {[%clk 0:02:00.8]} 22. dxe5 {[%clk 0:01:55.8]}
22... Rxc3 {[%clk 0:01:58.8]} 0-1

[Event "Late-Titled-Tuesday-Blitz-November-28-2023"]
[Site "Chess.com"]
[Date "2023.11.28"]
[Round "7"]
[White "GHANDEEVAM2003"]
[Black "ThePeacefulPanda"]
[Result "1-0"]
[WhiteElo "3116"]
[BlackElo "2564"]
[TimeControl "180+1"]
[EndTime "15:10:59 PST"]
[Termination "GHANDEEVAM2003 won by resignation"]

1. b3 {[%clk 0:03:00.9]} 1... Nf6 {[%clk 0:02:58.9]} 2. Bb2 {[%clk 0:03:01.8]}
2... g6 {[%clk 0:02:59.5]} 3. g3 {[%clk 0:03:02.3]} 3... Bg7 {[%clk 0:03:00.1]}
4. Bg2 {[%clk 0:03:03.2]} 4... O-O {[%clk 0:03:00.6]} 5. Nf3 {[%clk 0:03:03.8]}
5... d6 {[%clk 0:02:59.6]} 6. O-O {[%clk 0:03:04.5]} 6... e5 {[%clk 0:03:00.1]}
7. c4 {[%clk 0:03:05.1]} 7... c6 {[%clk 0:02:57.3]} 8. Nc3 {[%clk 0:03:05.3]}
8... Re8 {[%clk 0:02:55.6]} 9. Rc1 {[%clk 0:03:03.9]} 9... Nbd7 {[%clk
0:02:47.1]} 10. d4 {[%clk 0:03:02.1]} 10... a6 {[%clk 0:02:42.8]} 11. dxe5
{[%clk 0:02:55.2]} 11... Nxe5 {[%clk 0:02:43.7]} 12. Qd2 {[%clk 0:02:53.3]}
12... Nxf3+ {[%clk 0:02:42.1]} 13. Bxf3 {[%clk 0:02:54.2]} 13... Be6 {[%clk
0:02:34.1]} 14. Rfd1 {[%clk 0:02:54.4]} 14... d5 {[%clk 0:02:34.7]} 15. cxd5
{[%clk 0:02:52.7]} 15... Nxd5 {[%clk 0:02:34.8]} 16. Nxd5 {[%clk 0:02:51]} 16...
Bxd5 {[%clk 0:02:30.2]} 17. Bxg7 {[%clk 0:02:49.4]} 17... Kxg7 {[%clk
0:02:31.1]} 18. Bxd5 {[%clk 0:02:41.5]} 18... Qxd5 {[%clk 0:02:32]} 19. Qxd5
{[%clk 0:02:30]} 19... cxd5 {[%clk 0:02:32.9]} 20. e3 {[%clk 0:02:30.6]} 20...
Rac8 {[%clk 0:02:32.5]} 21. Rxc8 {[%clk 0:02:30.7]} 21... Rxc8 {[%clk
0:02:33.4]} 22. Rxd5 {[%clk 0:02:31.4]} 22... Rc1+ {[%clk 0:02:25.3]} 23. Kg2
{[%clk 0:02:31.3]} 23... Rc2 {[%clk 0:02:26.2]} 24. Ra5 {[%clk 0:02:31.2]} 24...
h5 {[%clk 0:02:25.2]} 25. h3 {[%clk 0:02:30.8]} 25... Rb2 {[%clk 0:02:25.6]} 26.
Kf3 {[%clk 0:02:29.9]} 26... Kf6 {[%clk 0:02:24.2]} 27. h4 {[%clk 0:02:29.6]}
27... Ke6 {[%clk 0:02:24.1]} 28. e4 {[%clk 0:02:30.3]} 28... Kf6 {[%clk
0:02:23.6]} 29. Ke3 {[%clk 0:02:30.7]} 29... Ke6 {[%clk 0:02:24.1]} 30. f3
{[%clk 0:02:30.2]} 30... Rg2 {[%clk 0:02:22.5]} 31. Kf4 {[%clk 0:02:29.7]} 31...
Rb2 {[%clk 0:02:21.8]} 32. Ra4 {[%clk 0:02:29.2]} 32... Kf6 {[%clk 0:02:15.4]}
33. Rb4 {[%clk 0:02:26.1]} 33... b5 {[%clk 0:02:10.1]} 34. a3 {[%clk 0:02:26]}
34... Ra2 {[%clk 0:02:03.6]} 35. a4 {[%clk 0:02:25.8]} 1-0

[Event "Late-Titled-Tuesday-Blitz-November-28-2023"]
[Site "Chess.com"]
[Date "2023.11.28"]
[Round "7"]
[White "Bryanl106"]
[Black "CSB7"]
[Result "1/2-1/2"]
[WhiteElo "2500"]
[BlackElo "2697"]
[TimeControl "180+1"]
[EndTime "15:11:07 PST"]
[Termination "Game drawn by repetition"]

1. e4 {[%clk 0:03:00.2]} 1... e5 {[%clk 0:02:58.4]} 2. Nf3 {[%clk 0:02:59.7]}
2... Nc6 {[%clk 0:02:59]} 3. Nc3 {[%clk 0:02:58.1]} 3... Nf6 {[%clk 0:02:58.3]}
4. a3 {[%clk 0:02:40.8]} 4... d5 {[%clk 0:02:45.9]} 5. Bb5 {[%clk 0:02:40.4]}
5... Nxe4 {[%clk 0:02:20.3]} 6. Qe2 {[%clk 0:02:39.9]} 6... Qd6 {[%clk
0:02:19.9]} 7. Nxe4 {[%clk 0:02:39.1]} 7... dxe4 {[%clk 0:02:20.6]} 8. Qxe4
{[%clk 0:02:40]} 8... Bd7 {[%clk 0:02:20.7]} 9. d4 {[%clk 0:02:40.3]} 9... O-O-O
{[%clk 0:02:18.9]} 10. dxe5 {[%clk 0:02:35.1]} 10... Nxe5 {[%clk 0:02:18.2]} 11.
Bxd7+ {[%clk 0:02:35.8]} 11... Nxd7 {[%clk 0:02:18.2]} 12. O-O {[%clk
0:02:35.6]} 12... Nf6 {[%clk 0:02:03.6]} 13. Qa4 {[%clk 0:02:30.8]} 13... a6
{[%clk 0:01:57.7]} 14. Bf4 {[%clk 0:02:28.4]} 14... Qd7 {[%clk 0:01:57.2]} 15.
Qb3 {[%clk 0:02:19.2]} 15... Qd5 {[%clk 0:01:51.1]} 16. Qc3 {[%clk 0:02:14.9]}
16... Qc5 {[%clk 0:01:29.4]} 17. Qb3 {[%clk 0:02:11.6]} 17... Qd5 {[%clk
0:01:27.7]} 18. Qc3 {[%clk 0:02:11.7]} 18... Qc5 {[%clk 0:01:15.8]} 19. Qb3
{[%clk 0:02:11.8]} 19... Qd5 {[%clk 0:01:16.5]} 1/2-1/2